bitfinex/quotes_ETHUSD_20241130
["timestamp","ask_amount","ask_price","bid_price","bid_amount"]
[1732978348323,8.85,3666.2,3665.7,2.72799]
[1732978348584,8.85,3666.2,3665.7,5.45598]
[1732978348808,8.85,3666.2,3665.8,2.72788]
[1732978349503,9.96,3666.2,3665.8,2.72788]
[1732978350001,8.85,3666.0,3665.3,4.8165775]
[1732978350204,8.85,3666.0,3665.3,2.0882975]
[1732978350400,8.85,3666.0,3665.5,2.72814]
[1732978350640,1.5194,3665.9,3665.6,2.72806]
[1732978351133,2.6294,3665.9,3665.6,2.72806]
[1732978351332,2.6294,3665.9,3665.2,2.7283]
[1732978351535,0.55,3665.8,3665.1,2.72843]
[1732978351717,2.6294,3665.9,3665.5,2.72812]
[1732978351900,2.6294,3665.9,3665.8,2.72791]
[1732978352703,3.7394,3665.9,3665.5,2.72813]
[1732978352906,3.7394,3665.9,3665.6,2.72806]
[1732978353239,2.22,3665.9,3665.8,4.8162075]
[1732978353591,0.85608,3665.9,3665.8,9.4426075]
[1732978353796,0.85608,3665.9,3665.8,5.72791]
[1732978354107,0.85608,3665.9,3665.8,7.8162075]
[1732978354598,1.96608,3665.9,3665.8,7.8162075]
[1732978356318,3.02608,3665.9,3665.8,7.8162075]
[1732978358018,4.13608,3665.9,3665.8,7.92132505]
[1732978359291,5.79798,3665.9,3665.8,2.83302755]
[1732978359492,4.13608,3665.9,3665.8,2.83302755]
[1732978359750,5.24608,3665.9,3665.8,2.83302755]
[1732978360455,5.24608,3665.9,3665.8,4.92132505]
[1732978361361,6.35608,3665.9,3665.8,4.92132505]
[1732978362942,7.46608,3665.9,3665.8,4.92132505]
[1732978363584,7.41608,3665.9,3665.8,4.92132505]
[1732978364375,7.41608,3665.9,3665.8,2.83302755]
[1732978364573,8.52608,3665.9,3665.8,0.10511755]
[1732978364917,8.52608,3665.9,3665.7,2.72793]
[1732978365139,8.52608,3665.9,3665.8,2.72791]
[1732978365277,8.52608,3665.9,3665.8,2.8330254]
[1732978365475,8.52608,3665.9,3665.8,2.72791]
[1732978366001,8.52608,3665.9,3665.8,2.83317167]
[1732978366204,9.63608,3665.9,3665.8,2.83317167]
[1732978366926,9.63608,3665.9,3665.8,0.10526167]
[1732978367274,0.55,3665.8,3665.4,2.7282]
[1732978367712,1.66,3665.8,3665.4,2.7282]
[1732978367917,0.55,3665.6,3664.9,0.875]
[1732978368139,8.85,3665.7,3665.0,4.35491]
[1732978368338,8.85,3665.7,3665.5,2.72808]
[1732978368715,8.85,3665.7,3665.3,2.72828]
[1732978368926,8.85,3665.7,3665.6,2.72806]
[1732978369364,9.96,3665.7,3665.6,2.72806]
[1732978369564,9.96,3665.7,3665.4,2.72816]
[1732978369871,9.96,3665.7,3665.6,2.72806]
[1732978370945,11.07,3665.7,3665.6,2.72806]
[1732978371475,11.07,3665.7,3665.5,2.72813]
[1732978371629,11.07,3665.7,3665.2,2.72831]
[1732978371832,11.07,3665.7,3665.5,2.72813]
[1732978372243,11.07,3665.7,3665.2,2.72831]
[1732978372573,0.55,3665.6,3665.4,2.72816]
[1732978372784,0.55,3665.0,3664.9,0.875]
[1732978372934,1.6619,3665.1,3664.9,3.60358]
[1732978373123,1.6619,3665.1,3664.9,0.875]
[1732978373320,0.55,3665.0,3664.9,0.875]
[1732978373518,2.72908,3664.3,3662.6,0.1575687]
[1732978373736,1.572,3663.6,3662.6,2.2458662]
[1732978374019,0.1,3664.6,3662.6,2.2458662]
[1732978374020,1.572,3664.1,3663.4,2.0882975]
[1732978374267,1.572,3664.1,3663.6,2.72948]
[1732978374268,10.422,3664.1,3663.6,2.72948]
[1732978374431,8.85,3664.0,3663.7,2.72947]
[1732978374633,10.422,3664.7,3663.8,2.0882975]
[1732978374830,10.422,3664.7,3664.3,2.72899]
[1732978375222,10.422,3664.7,3664.4,2.82419657]
[1732978375547,1.572,3664.7,3664.6,2.72881]
[1732978375918,2.682,3664.7,3664.6,2.82401458]
[1732978376350,2.682,3664.7,3664.6,0.09520458]
[1732978376891,2.682,3664.7,3664.6,0.09522438]
[1732978377379,2.682,3664.7,3664.4,2.72895]
[1732978377540,3.792,3664.7,3664.6,0.09520502]
[1732978378021,12.642,3664.7,3663.9,2.72925]
[1732978378374,12.642,3664.7,3664.2,2.72905]
[1732978378721,12.642,3664.7,3664.3,0.09533864]
[1732978379237,13.752,3664.7,3664.3,0.09533864]
[1732978379439,2.122,3664.6,3664.3,0.09533864]
[1732978379633,2.122,3664.6,3664.3,2.82435864]
[1732978379839,2.122,3664.6,3664.3,2.72902]
[1732978380038,2.122,3664.6,3664.4,2.82422465]
[1732978380219,1.572,3664.6,3664.5,2.72888]
[1732978380419,1.572,3664.6,3664.5,2.82410365]
[1732978380827,2.682,3664.6,3664.5,2.82410365]
[1732978381025,1.11,3664.6,3664.5,2.82410365]
[1732978381350,1.11,3664.6,3664.5,4.91240115]
[1732978381863,1.11,3664.6,3664.5,2.82410365]
[1732978382458,2.22,3664.6,3664.5,2.82410365]
[1732978384320,3.33,3664.6,3664.5,2.82410365]
[1732978385169,3.33,3664.6,3664.5,0.09522365]
[1732978385664,3.33,3664.6,3664.5,0.09535198]
[1732978385819,3.33,3664.6,3664.5,2.82423198]
[1732978386028,4.44,3664.6,3664.5,2.82423198]
[1732978387282,4.44,3664.6,3664.5,4.91252948]
[1732978387446,4.44,3664.6,3664.5,7.12915368]
[1732978387646,5.55,3664.6,3664.5,6.57382948]
[1732978389084,5.55,3664.6,3664.5,4.91252948]
[1732978389294,6.66,3664.6,3664.5,2.82423198]
[1732978390992,7.77,3664.6,3664.5,2.82423198]
[1732978391487,7.77,3664.6,3664.5,5.82423198]
[1732978392560,8.88,3664.6,3664.5,5.82423198]
[1732978393292,8.88,3664.6,3664.5,7.05451593]
[1732978393671,8.88,3664.6,3664.5,8.63771593]
[1732978394272,9.99,3664.6,3664.5,8.63771593]
[1732978395000,9.99,3664.6,3664.5,7.67973198]
[1732978395994,11.1,3664.6,3664.5,7.67973198]
[1732978397283,11.1,3664.6,3664.5,9.76802948]
[1732978397596,12.21,3664.6,3664.5,9.76802948]
[1732978399096,12.21,3664.6,3664.5,7.67973198]
[1732978399254,13.32,3664.6,3664.5,9.76802948]
[1732978400580,13.32,3664.6,3664.5,2.82423198]
[1732978401107,14.43,3664.6,3664.5,2.82423198]
[1732978402805,15.54,3664.6,3664.5,2.82423198]
[1732978403008,17.1122,3664.6,3664.5,0.09535198]
[1732978403505,17.1122,3664.6,3664.5,0.09207445]
[1732978403721,18.81881,3664.6,3663.9,2.72933]
[1732978404018,1.5722,3664.5,3663.9,2.72933]
[1732978404215,1.5722,3664.4,3663.8,2.7294]
[1732978404370,0.55,3664.3,3663.5,2.0882975]
[1732978404570,0.55,3664.3,3663.8,2.72935]
[1732978404815,0.55,3664.3,3663.8,2.7294]
[1732978404970,1.5722,3664.2,3663.8,2.7294]
[1732978405290,10.4222,3663.9,3663.4,2.72968]
[1732978405539,10.4222,3663.9,3663.4,2.72965]
[1732978405904,10.4222,3663.9,3663.3,2.72972]
[1732978405905,10.4222,3663.8,3663.3,2.72972]
[1732978406149,10.4222,3663.8,3663.1,4.8182175]
[1732978406150,10.4222,3663.8,3663.1,2.0882975]
[1732978406533,1.5722,3663.7,3663.1,4.8182075]
[1732978406736,1.5722,3663.5,3662.7,2.0882975]
[1732978406953,8.85,3663.4,3662.8,2.73011]
[1732978407104,1.6636,3663.3,3662.8,2.73011]
[1732978407310,1.6636,3663.3,3662.6,4.9761562]
[1732978407533,4.39338,3663.3,3662.6,2.2458662]
[1732978407854,2.7736,3663.3,3662.6,2.2458662]
[1732978408010,2.7736,3663.3,3662.9,2.73007]
[1732978408437,2.7736,3663.3,3662.7,2.73016]
[1732978408639,2.7736,3663.3,3662.8,2.73013]
[1732978408953,2.7736,3663.3,3662.9,2.73001]
[1732978409144,2.7736,3663.3,3663.0,4.8182375]
[1732978409328,3.8836,3663.3,3663.2,2.72985]
[1732978410703,3.8836,3663.3,3663.0,4.8182375]
[1732978410951,3.33,3663.3,3663.0,4.8182775]
[1732978411111,11.0636,3663.1,3662.6,0.1575687]
[1732978411512,1.6636,3663.1,3662.8,2.0882975]
[1732978411729,1.6636,3663.1,3663.0,2.73]
[1732978411907,3.33,3663.3,3663.2,2.72985]
[1732978412251,3.33,3663.3,3663.2,4.8181475]
[1732978412408,3.33,3663.3,3663.2,4.91143089]
[1732978412609,4.44,3663.3,3663.2,4.91143089]
[1732978414178,5.55,3663.3,3663.2,4.91143089]
[1732978415138,7.215,3663.3,3663.2,2.82313339]
[1732978415830,8.325,3663.3,3663.2,2.82313339]
[1732978416056,6.66,3663.3,3663.2,2.82313339]
[1732978417535,7.77,3663.3,3663.2,2.82313339]
[1732978419175,8.88,3663.3,3663.2,2.82313339]
[1732978421234,9.99,3663.3,3663.2,2.82313339]
[1732978421988,9.99,3663.3,3663.2,4.47703339]
[1732978422471,9.99,3663.3,3663.2,2.82313339]
[1732978422853,11.1,3663.3,3663.2,2.82313339]
[1732978424578,12.21,3663.3,3663.2,2.82313339]
[1732978425134,12.21,3663.3,3663.2,4.47703339]
[1732978425995,12.21,3663.3,3663.2,4.74933339]
[1732978426150,13.32,3663.3,3663.2,4.74933339]
[1732978426502,9.22533,3663.3,3663.2,7.74933339]
[1732978426653,5.13066,3663.3,3663.2,9.21492623]
[1732978427347,3.76577,3663.3,3663.2,9.21492623]
[1732978427547,1.03599,3663.3,3663.2,9.21492623]
[1732978427749,1e-05,3663.3,3663.2,9.21492623]
[1732978429383,1.11001,3663.3,3663.2,9.21492623]
[1732978431221,2.22001,3663.3,3663.2,9.21492623]
[1732978432819,3.33001,3663.3,3663.2,9.21492623]
[1732978434225,3.33001,3663.3,3663.2,7.56102623]
[1732978434383,4.44001,3663.3,3663.2,7.56102623]
[1732978434728,0.34534,3663.3,3663.2,7.56102623]
[1732978434928,1.11,3663.9,3663.8,5.7294]
[1732978435136,1.11,3664.5,3663.8,10.4484865]
[1732978435279,1.11,3664.5,3664.4,4.8172475]
[1732978435624,1.11,3664.5,3664.4,6.42226866]
[1732978435832,1.11,3664.5,3664.4,8.51056616]
[1732978435985,2.22,3664.5,3664.4,8.51056616]
[1732978436329,2.22,3664.5,3664.4,9.63452778]
[1732978436624,15.54,3664.6,3664.5,5.72888]
[1732978437292,11.38593435,3664.6,3664.5,6.09349517]
[1732978437698,12.49593435,3664.6,3664.5,6.09349517]
[1732978438512,12.49593435,3664.6,3664.5,5.82119517]
[1732978439000,12.49593435,3664.6,3664.5,0.09231517]
[1732978439188,12.49593435,3664.6,3664.5,2.82119517]
[1732978439386,13.60593435,3664.6,3664.5,2.82119517]
[1732978440343,13.60593435,3664.6,3664.5,3.58503944]
[1732978440546,13.60593435,3664.6,3664.5,5.67333694]
[1732978440894,14.71593435,3664.6,3664.5,8.67333694]
[1732978441715,14.71593435,3664.6,3664.5,6.58503944]
[1732978442746,15.82593435,3664.6,3664.5,6.58503944]
[1732978444027,15.82593435,3664.6,3664.5,6.85733944]
[1732978444224,16.93593435,3664.6,3664.5,6.85733944]
[1732978444825,16.93593435,3664.6,3664.5,6.58503944]
[1732978445527,9.1065287,3664.6,3664.5,8.67333694]
[1732978445926,10.2165287,3664.6,3664.5,6.58503944]
[1732978447151,10.2165287,3664.6,3664.5,8.09763944]
[1732978447559,11.3265287,3664.6,3664.5,8.09763944]
[1732978449130,12.4365287,3664.6,3664.5,8.09763944]
[1732978450718,13.5465287,3664.6,3664.5,5.82119517]
[1732978451080,15.1814287,3664.6,3664.5,2.82119517]
[1732978451670,13.5465287,3664.6,3664.5,2.82119517]
[1732978452417,13.5465287,3664.6,3664.5,4.33379517]
[1732978452577,14.6565287,3664.6,3664.5,7.33379517]
[1732978453117,14.6565287,3664.6,3664.5,8.01435927]
[1732978454089,14.4021187,3664.6,3664.5,8.01435927]
[1732978454716,14.4021187,3664.6,3664.5,5.82119517]
[1732978455015,14.4021187,3664.6,3664.5,6.09349517]
[1732978455587,14.4021187,3664.6,3664.5,7.63489517]
[1732978455924,15.5121187,3664.6,3664.5,7.63489517]
[1732978457394,16.6221187,3664.6,3664.5,7.63489517]
[1732978457706,16.6221187,3664.6,3664.5,8.89010944]
[1732978459028,12.2745987,3664.6,3664.5,10.97840694]
[1732978459322,10.9102287,3664.6,3664.5,10.97840694]
[1732978459528,4.0881787,3664.6,3664.5,10.97840694]
[1732978460389,1.3594387,3664.6,3664.5,11.52840694]
[1732978460591,1.7063287,3664.7,3664.6,6.10111]
[1732978460780,1.7063287,3664.7,3664.6,9.40581644]
[1732978460981,1.7063287,3664.7,3664.6,9.4977073]
[1732978462196,2.8163287,3664.7,3664.6,9.4977073]
[1732978463939,1.1975887,3664.7,3664.6,9.4977073]
[1732978464796,8.7e-06,3664.7,3664.6,9.4977073]
[1732978468648,1.1100087,3664.7,3664.6,9.4977073]
[1732978470129,2.2200087,3664.7,3664.6,9.4977073]
[1732978471614,3.3300087,3664.7,3664.6,9.4977073]
[1732978471798,3.3300087,3664.7,3664.6,8.18129836]
[1732978471999,3.3300087,3664.7,3664.6,7.90899836]
[1732978472935,3.3300087,3664.7,3664.6,5.82070086]
[1732978473154,1.595,3665.6,3665.5,2.72814]
[1732978473442,1.595,3665.6,3665.5,4.8164375]
[1732978473803,1.595,3665.6,3665.5,4.90469502]
[1732978474937,2.705,3665.6,3665.5,4.90469502]
[1732978475135,1.11,3665.6,3665.5,7.90469502]
[1732978476514,2.22,3665.6,3665.5,7.90469502]
[1732978477258,2.22,3665.6,3665.5,5.81639752]
[1732978478252,4.8369,3665.6,3665.5,5.81639752]
[1732978479144,4.8369,3665.6,3665.5,2.81639752]
[1732978479346,4.8369,3665.6,3665.5,0.08825752]
[1732978479556,4.8369,3665.6,3665.2,2.72836]
[1732978479713,4.8369,3665.6,3665.5,0.08866807]
[1732978479908,5.9469,3665.6,3665.3,2.72826]
[1732978480109,5.9469,3665.6,3665.4,0.08871904]
[1732978480538,5.9469,3665.6,3665.4,2.81689904]
[1732978481554,7.0569,3665.6,3665.4,2.81689904]
[1732978481852,7.0569,3665.6,3665.4,0.08871904]
[1732978482158,7.0569,3665.6,3665.5,2.72814]
[1732978482315,7.0569,3665.6,3665.5,2.81680807]
[1732978483116,8.1669,3665.6,3665.5,2.81680807]
[1732978484981,9.2769,3665.6,3665.5,2.81680807]
[1732978486654,10.3869,3665.6,3665.5,2.81680807]
[1732978486978,8.88,3665.6,3665.5,2.81680807]
[1732978488114,8.88,3665.6,3665.5,6.74577463]
[1732978488384,9.99,3665.6,3665.5,8.25217463]
[1732978489190,9.99,3665.6,3665.5,8.52447463]
[1732978489968,11.1,3665.6,3665.5,8.52447463]
[1732978491169,0.54256435,3665.6,3665.5,8.52447463]
[1732978491480,0.54256435,3665.6,3665.5,9.07447463]
[1732978491778,1.65256435,3665.6,3665.5,9.07447463]
[1732978492980,1.65256435,3665.6,3665.5,8.52447463]
[1732978493174,2.76256435,3665.6,3665.5,8.52447463]
[1732978495074,3.87256435,3665.6,3665.5,8.52447463]
[1732978496822,4.98256435,3665.6,3665.5,8.52447463]
[1732978498074,1.96600435,3665.7,3665.5,9.07447463]
[1732978498271,1.96600435,3665.7,3665.6,7.39946321]
[1732978498480,4.35e-06,3665.7,3665.6,7.39946321]
[1732978498692,4.35e-06,3665.7,3665.6,7.48782443]
[1732978500119,1.11000435,3665.7,3665.6,7.48782443]
[1732978501670,2.22000435,3665.7,3665.6,7.48782443]
[1732978503327,3.33000435,3665.7,3665.6,7.48782443]
[1732978503528,3.33000435,3665.7,3665.6,6.08872122]
[1732978503878,3.33000435,3665.7,3665.6,5.81642122]
[1732978504232,4.85590435,3665.7,3665.6,2.81642122]
[1732978505026,5.96590435,3665.7,3665.6,2.81642122]
[1732978505707,5.96590435,3665.7,3665.6,5.81642122]
[1732978506593,7.07590435,3665.7,3665.6,2.81642122]
[1732978508102,8.18590435,3665.7,3665.6,2.81642122]
[1732978508520,8.18590435,3665.7,3665.6,0.08836122]
[1732978508906,1.5259,3665.6,3665.5,2.72814]
[1732978509796,2.6359,3665.6,3665.5,2.72814]
[1732978510338,2.6359,3665.6,3665.4,2.72819]
[1732978511133,1.5259,3665.5,3665.2,5.72832]
[1732978511356,1.5259,3665.5,3664.2,2.72903]
[1732978511357,4.25463,3664.7,3663.2,2.72978]
[1732978511535,1.5259,3664.3,3663.6,2.72948]
[1732978511835,1.5259,3664.3,3663.8,2.7294]
[1732978511994,1.5259,3664.3,3663.6,2.72953]
[1732978513041,1.5259,3664.3,3663.5,2.72962]
[1732978513339,1.5259,3664.2,3663.5,2.72962]
[1732978514511,1.5259,3664.2,3663.3,2.72977]
[1732978514747,1.5802,3664.1,3663.3,2.72977]
[1732978516664,1.11,3664.1,3663.3,2.72977]
[1732978516874,1.5802,3664.0,3663.5,2.72962]
[1732978517155,1.5802,3664.0,3663.3,2.72977]
[1732978517320,1.5802,3664.0,3663.6,0.07482889]
[1732978517511,1.5802,3664.0,3663.3,2.72977]
[1732978517717,1.5802,3664.0,3663.4,0.07455921]
[1732978518026,1.5802,3664.0,3663.4,2.72968]
[1732978518232,1.6177,3663.9,3663.5,0.0745082]
[1732978519717,1.6177,3663.9,3663.1,2.72992]
[1732978520068,1.6177,3663.7,3663.2,0.07510776]
[1732978520248,1.6177,3663.4,3663.2,0.07510776]
[1732978520564,1.6177,3663.4,3663.3,0.07504118]
[1732978520565,1.327,3663.4,3663.3,0.07504118]
[1732978520784,2.7297,3663.4,3662.3,2.73049]
[1732978520925,2.7297,3663.4,3661.7,6.4422875]
[1732978520926,8.85,3663.3,3661.7,4.35399]
[1732978521255,8.85,3663.2,3662.4,2.73042]
[1732978521464,2.72996,3663.1,3662.3,2.73048]
[1732978521668,1.11,3663.2,3662.3,2.73048]
[1732978521830,1.11,3663.2,3662.1,2.73066]
[1732978522043,3.83985,3663.2,3662.1,2.73066]
[1732978522267,1.11,3663.2,3662.0,2.73071]
[1732978522452,2.73022,3662.7,3661.8,2.73088]
[1732978523246,2.73022,3662.7,3661.5,2.73111]
[1732978523437,5.45792,3662.7,3661.1,3.7113975]
[1732978523667,14.30792,3662.7,3661.8,2.73082]
[1732978523968,14.30792,3662.7,3661.8,2.73083]
[1732978523969,11.5777,3662.7,3661.8,2.73083]
[1732978524183,11.5777,3662.7,3661.9,2.73081]
[1732978524347,11.5777,3662.7,3662.0,2.7307]
[1732978524553,11.5777,3662.7,3662.1,2.73066]
[1732978525062,12.6877,3662.7,3662.1,2.73066]
[1732978525228,12.6877,3662.7,3662.3,2.73048]
[1732978525433,12.6877,3662.7,3662.6,0.23080966]
[1732978525635,12.6877,3662.7,3662.6,0.1575687]
[1732978525860,12.6877,3662.7,3662.6,0.23027913]
[1732978526430,12.6877,3662.7,3662.6,2.96057913]
[1732978526676,13.7977,3662.7,3662.6,2.96057913]
[1732978526857,3.33,3662.7,3662.6,2.96057913]
[1732978528472,4.44,3662.7,3662.6,2.96057913]
[1732978529260,6.0577,3662.7,3662.6,2.96057913]
[1732978530059,7.1677,3662.7,3662.6,2.96057913]
[1732978531374,7.1677,3662.7,3662.6,0.23027913]
[1732978531844,8.8277,3662.7,3662.6,0.23027913]
[1732978532346,8.8277,3662.7,3662.6,0.1575687]
[1732978532746,20.40792,3662.7,3662.6,0.1575687]
[1732978533478,21.51792,3662.7,3662.6,0.1575687]
[1732978534201,12.66792,3662.7,3662.6,0.1575687]
[1732978534384,12.66792,3662.7,3661.0,0.2726]
[1732978534385,4.25828,3662.0,3661.0,2.73149]
[1732978534586,1.5275,3661.7,3661.0,2.73149]
[1732978534789,4.2585,3661.7,3661.0,2.73149]
[1732978535423,1.5275,3661.7,3661.0,2.73149]
[1732978535578,1.5275,3661.5,3660.2,2.73209]
[1732978535779,0.55,3661.4,3660.8,2.73158]
[1732978536176,0.55,3661.4,3660.6,2.73175]
[1732978536177,2.73129,3661.3,3660.6,2.73175]
[1732978536382,1.5275,3661.2,3660.6,2.73175]
[1732978536925,1.5275,3661.2,3660.9,2.73155]
[1732978537082,1.5275,3661.2,3660.6,2.73173]
[1732978537284,1.5275,3661.1,3660.1,2.73216]
[1732978537519,1.5275,3661.1,3660.0,1.0]
[1732978537685,1.5275,3661.5,3661.0,2.73149]
[1732978538023,1.5275,3661.5,3661.3,2.73124]
[1732978538225,1.5275,3661.5,3661.1,2.73141]
[1732978538410,1.5275,3661.5,3661.4,0.07173737]
[1732978538615,1.5275,3661.5,3660.9,2.73156]
[1732978538830,1.5275,3661.5,3661.4,0.07172147]
[1732978539126,1.5275,3661.5,3661.1,2.73141]
[1732978539628,1.5275,3661.5,3661.2,0.07182363]
[1732978539983,1.5275,3661.5,3661.2,2.80316363]
[1732978540205,1.5275,3661.5,3661.2,0.07182363]
[1732978540487,8.85,3661.6,3660.5,2.7318]
[1732978540488,1.5275,3661.9,3661.1,2.73141]
[1732978540703,1.5275,3661.9,3661.8,2.73089]
[1732978540924,1.5275,3661.9,3661.6,2.73103]
[1732978541131,1.5275,3661.9,3661.0,1.5856]
[1732978541132,1.5275,3661.9,3661.8,0.07157501]
[1732978541327,1.5275,3661.9,3661.7,2.80251087]
[1732978541539,1.5275,3661.9,3661.8,2.80248238]
[1732978542151,1.66,3662.0,3661.9,2.73082]
[1732978542358,2.77,3662.0,3661.9,2.73082]
[1732978542719,2.22,3662.0,3661.9,2.73082]
[1732978543026,2.22,3662.0,3661.9,3.34852042]
[1732978544021,3.33,3662.0,3661.9,3.34852042]
[1732978545627,4.44,3662.0,3661.9,3.34852042]
[1732978546269,4.44,3662.0,3661.9,2.80234442]
[1732978547323,5.55,3662.0,3661.9,4.38794442]
[1732978548826,6.66,3662.0,3661.9,4.38794442]
[1732978550446,7.77,3662.0,3661.9,4.38794442]
[1732978552119,8.88,3662.0,3661.9,4.38794442]
[1732978552386,8.88,3662.0,3661.9,2.80234442]
[1732978553187,9.43,3662.0,3661.9,2.80234442]
[1732978553385,9.43,3662.0,3661.9,0.07152442]
[1732978553591,9.43,3662.0,3661.7,2.73096]
[1732978553904,10.54,3662.0,3661.9,2.80236229]
[1732978554043,10.54,3662.0,3661.8,2.80248336]
[1732978554245,10.54,3662.0,3661.9,0.07154229]
[1732978554467,10.54,3662.0,3661.8,2.73089]
[1732978554683,10.54,3662.0,3661.9,0.07154229]
[1732978554858,10.54,3662.0,3661.7,2.73096]
[1732978555053,10.54,3662.0,3661.9,0.07154229]
[1732978555347,12.1766,3662.0,3661.6,2.73103]
[1732978555572,13.2866,3662.0,3661.6,2.73103]
[1732978555743,13.2866,3662.0,3661.7,2.73095]
[1732978556449,0.55,3661.9,3661.5,2.73111]
[1732978556648,0.55,3661.9,3661.8,0.07159336]
[1732978556851,0.55,3661.9,3661.6,2.73102]
[1732978557160,0.55,3661.9,3661.8,0.07159336]
[1732978557358,2.1866,3661.8,3660.9,2.73151]
[1732978557562,1.6366,3661.8,3660.5,0.2726]
[1732978557746,0.55,3661.7,3661.2,2.73132]
[1732978557946,0.55,3661.7,3661.3,0.07184606]
[1732978558143,0.55,3661.7,3661.3,2.80310606]
[1732978558414,0.55,3661.7,3661.4,2.73118]
[1732978558747,0.55,3661.7,3661.6,2.73104]
[1732978559188,0.55,3661.7,3661.6,2.80282191]
[1732978559493,11.1,3662.0,3661.9,2.73082]
[1732978559738,12.21,3662.0,3661.9,2.73082]
[1732978560352,12.21,3662.0,3661.9,6.8956965]
[1732978560551,12.21,3662.0,3661.9,6.96730533]
[1732978561500,13.32,3662.0,3661.9,6.96730533]
[1732978562970,14.43,3662.0,3661.9,6.96730533]
[1732978563301,14.43,3662.0,3661.9,4.33282883]
[1732978563538,14.43,3662.0,3661.9,2.80242883]
[1732978563855,14.43,3662.0,3661.9,0.07160883]
[1732978564058,0.55,3661.9,3661.6,2.73102]
[1732978564288,0.55,3661.9,3661.7,2.73097]
[1732978564495,1.6366,3661.8,3661.5,2.73111]
[1732978564659,1.6366,3661.8,3661.4,2.73115]
[1732978565158,1.6366,3661.8,3661.0,2.73149]
[1732978565354,1.6366,3661.8,3661.4,2.73119]
[1732978565753,1.6366,3661.8,3661.5,2.7311]
[1732978566761,1.6366,3661.8,3661.3,2.73126]
[1732978566967,1.6366,3661.8,3661.4,2.73112]
[1732978567991,1.6366,3661.8,3661.5,0.07184988]
[1732978568302,1.6366,3661.8,3661.7,2.73097]
[1732978568602,1.6366,3661.8,3661.7,2.80275149]
[1732978569525,16.0666,3662.0,3661.8,2.73085]
[1732978569683,17.1766,3662.0,3661.9,2.73082]
[1732978570908,17.1766,3662.0,3661.9,0.07167935]
[1732978571463,0.55,3661.9,3661.3,2.7312]
[1732978571831,2.1866,3661.6,3661.0,2.73148]
[1732978572049,4.91765,3661.6,3660.8,2.73158]
[1732978572250,4.91765,3661.6,3660.7,2.73164]
[1732978572520,4.91765,3661.6,3660.9,2.73151]
[1732978572922,4.91765,3661.6,3660.7,2.73164]
[1732978573124,2.1866,3661.6,3661.0,2.73148]
[1732978573571,2.1866,3661.6,3661.1,2.7314]
[1732978573722,2.1866,3661.6,3661.4,2.73114]
[1732978574225,1.6366,3661.6,3661.4,2.73114]
[1732978574544,1.6366,3661.6,3661.5,2.73112]
[1732978574869,1.6366,3661.6,3661.4,2.73114]
[1732978574870,0.55,3661.7,3661.6,2.731]
[1732978575836,8.85,3661.8,3661.7,2.73097]
[1732978577240,8.85,3661.8,3661.5,2.73105]
[1732978577574,8.85,3661.8,3661.3,2.73126]
[1732978577575,8.85,3661.8,3661.6,2.73103]
[1732978578234,8.85,3661.8,3661.7,0.07180136]
[1732978578538,9.4,3661.8,3661.6,2.73103]
[1732978578759,9.4,3661.8,3661.5,2.7311]
[1732978578944,0.55,3661.7,3661.3,2.73126]
[1732978579292,0.55,3661.5,3661.1,2.7314]
[1732978579655,0.55,3661.5,3661.2,2.73133]
[1732978580066,0.55,3661.5,3661.2,2.73131]
[1732978580475,0.55,3661.5,3660.9,2.73156]
[1732978580641,0.55,3661.5,3661.1,2.7314]
[1732978581384,0.55,3661.5,3661.2,2.73133]
[1732978581757,1.5738,3661.6,3661.3,2.73126]
[1732978582065,17.76,3662.0,3660.5,3.0044]
[1732978582066,8.85,3661.9,3661.7,2.73096]
[1732978582268,8.85,3661.9,3661.5,2.73111]
[1732978583484,0.55,3661.8,3661.6,2.73104]
[1732978584064,0.55,3661.8,3661.7,0.07179836]
[1732978584387,0.55,3661.8,3661.6,2.73104]
[1732978584744,0.55,3661.8,3661.7,0.07179836]
[1732978585046,0.55,3661.9,3661.6,2.73104]
[1732978585353,0.55,3661.9,3661.7,0.07176459]
[1732978585762,0.55,3661.9,3661.6,2.73104]
[1732978586415,0.55,3661.9,3661.7,0.07176459]
[1732978586760,0.55,3661.9,3661.6,2.73104]
[1732978586961,0.55,3661.9,3661.4,2.73117]
[1732978587489,0.55,3661.9,3661.5,0.07186674]
[1732978587714,0.55,3661.9,3661.5,2.7311]
[1732978588013,0.55,3661.9,3661.6,2.80279268]
[1732978588311,18.87,3662.0,3661.9,2.73082]
[1732978588511,13.15315,3662.0,3661.9,4.34807946]
[1732978588723,13.15315,3662.0,3661.9,7.34807946]
[1732978588867,13.15315,3662.0,3661.9,8.62014508]
[1732978590212,14.26315,3662.0,3661.9,8.62014508]
[1732978591874,15.37315,3662.0,3661.9,8.62014508]
[1732978593420,16.48315,3662.0,3661.9,8.62014508]
[1732978595123,17.59315,3662.0,3661.9,8.62014508]
[1732978596819,18.70315,3662.0,3661.9,8.62014508]
[1732978598421,19.81315,3662.0,3661.9,8.62014508]
[1732978598649,14.35167,3662.0,3661.9,8.62014508]
[1732978599055,12.9863,3662.0,3661.9,8.62014508]
[1732978599280,11.62093,3662.0,3661.9,8.62014508]
[1732978599427,7.52482,3662.0,3661.9,8.62014508]
[1732978599858,7.26945,3662.0,3661.9,8.89274508]
[1732978601643,8.37945,3662.0,3661.9,8.89274508]
[1732978603074,8.37945,3662.0,3661.9,7.34714508]
[1732978603412,9.48945,3662.0,3661.9,7.34714508]
[1732978606224,10.59945,3662.0,3661.9,8.85564508]
[1732978606679,11.70945,3662.0,3661.9,8.85564508]
[1732978608490,12.81945,3662.0,3661.9,8.85564508]